Cogmind - Beta 9.2 @@@ ROGUE MODE // 2019.12.09 @ 21:56:45 Player: Fleshy Vegetable Bird Result: Destroyed by as-92186 with Assembled Heavy Rifle Performance ------------- Evolutions (0) 0 Regions Visited (2) 400 Robots Destroyed (3) 15 Value Destroyed (20) 20 Prototype IDs (0) 0 Alien Tech Used (0) 0 Bonus (0) 0 TOTAL SCORE: 435 Bonus ------- None Cogmind --------- Core Integrity 0/250 Matter 300/300 Energy 100/100 System Corruption 0% Temperature Cool (0) Movement Core (150) Ox2 Location -10/Mines Parts ------- > --- POWER (1) -------- (None) > --- PROPULSION (2) --- (None) > --- UTILITY (2) ------ Small Storage Unit Small Storage Unit > --- WEAPON (2) ------- (None) > --- INVENTORY (8) ---- Light Treads Light Treads Compact Wheel Peak State ------------ > --- POWER ------------ Light Ion Engine > --- PROPULSION ------- Wheel Compact Wheel > --- UTILITY ---------- Small Storage Unit Small Storage Unit > --- WEAPON ----------- Medium Laser Small Laser > --- INVENTORY -------- Light Treads Light Treads Wheel Medium Laser Mining Laser [Rating: 7] Favorites ----------- Power Light Ion Engine Engine Light Ion Engine Propulsion Wheel Treads Light Treads Wheel Wheel Utility Small Storage Unit Storage Small Storage Unit Weapon Medium Laser Energy Gun Medium Laser Special Weapon Mining Laser Build | -11 -10 -10 ------- Run | Scr Mat Min Slots Evolved . | . . . Power . | . . . Propulsion . | . . . Utility . | . . . Weapon . | . . . Parts Attached 17 | 8 . 9 Power 2 | 1 . 1 Engine 2 | 1 . 1 Core . | . . . Reactor . | . . . Propulsion 7 | 3 . 4 Treads 2 | . . 2 Leg . | . . . Wheel 5 | 3 . 2 Hover . | . . . Flight . | . . . Utility 2 | 2 . . Device . | . . . Storage 2 | 2 . . Processor . | . . . Hackware . | . . . Protection . | . . . Artifact . | . . . Weapon 6 | 2 . 4 Energy Gun 5 | 2 . 3 Energy Cannon . | . . . Ballistic Gun . | . . . Ballistic Cannon . | . . . Launcher . | . . . Special Weapon 1 | . . 1 Impact Weapon . | . . . Slashing Weapon . | . . . Piercing Weapon . | . . . Special Melee Weapon . | . . . Unidentified Prototypes . | . . . Parts Lost 12 | . . 12 Power 2 | . . 2 Propulsion 4 | . . 4 Utility . | . . . Weapon 6 | . . 6 Highest Loss Streak 8 | . . 8 Average Slot Usage (%) 80 | . 100 77 Engine 7 | . 14 6 Treads 1 | . . 1 Wheel 24 | . 28 24 Storage 28 | . 28 28 Energy Gun 17 | . 28 16 Naked Turns . | . . . Heaviest Build 14 | 14 14 14 Greatest Support 40 | 26 20 40 Greatest Overweight (x) 2 | 2 . 2 Average Overweight (x) . | . . . Largest Inventory Capacity 8 | 8 8 8 Average Capacity 7 | 6 8 8 Most Carried 8 | 6 8 8 Average Carried 5 | 3 6 5 Final Capacity 8 | 8 8 8 Final Carried 8 | 6 8 3 Class Distribution -------------------- 100% | Mutant Dominant Class ---------------- Mutant | -10/Materials Mutant | -10/Mines Resources | -11 -10 -10 ----------- Run | Scr Mat Min Matter Collected 330 | 280 . 50 Remotely . | . . . Salvage Created 132 | 132 . . Parts 5 | 5 . . Haulers Intercepted . | . . . Recyclers Shooed . | . . . Parts Field Recycled . | . . . Retrieved Matter . | . . . Parts Self-Destructed . | . . . Prevented . | . . . Kills | -11 -10 -10 ------- Run | Scr Mat Min Combat Hostiles Destroyed . | . . . Classes Destroyed 2 | 2 . . Tunneler 2 | 2 . . Recycler 1 | 1 . . Best Kill Streak 2 | 2 . . Combat Bots Only . | . . . Max Kills in Single Turn 1 | 1 . . Gunslinging . | . . . Exploded . | . . . Melee . | . . . Uniques/NPCs Destroyed . | . . . Combat | -11 -10 -10 -------- Run | Scr Mat Min Damage Taken 928 | . . 928 Core 263 | . . 263 Absorbed by Shields . | . . . Core Remaining (%) 100 | 100 . . Volleys Fired 18 | 8 . 10 Largest 2 | 2 . 2 Hottest 90 | 90 . 90 Shots Fired 30 | 16 . 14 Gun 30 | 16 . 14 Cannon . | . . . Launcher . | . . . Special . | . . . Kinetic . | . . . Thermal 24 | 16 . 8 Explosive . | . . . Electromagnetic 6 | . . 6 Robot Hit Streak 3 | 3 . 3 Robot Miss Streak 3 | 3 . 2 Penetration Max . | . . . Secondary Targets . | . . . Shots Hit Robots 15 | 7 . 8 Core Hits 7 | 4 . 3 Critical Hits . | . . . Critical Kills . | . . . Critical Parts Destroyed . | . . . Melee Attacks . | . . . Impact . | . . . Slashing . | . . . Piercing . | . . . Sneak Attacks . | . . . Combat Hostiles . | . . . Follow-up Attacks . | . . . Damage Inflicted 215 | 84 . 131 Guns 182 | 84 . 98 Cannons . | . . . Explosions 33 | . . 33 Melee . | . . . Ramming . | . . . Kinetic . | . . . Thermal 180 | 84 . 96 Explosive . | . . . Electromagnetic 35 | . . 35 Impact . | . . . Slashing . | . . . Piercing . | . . . Highest Corruption . | . . . Average Corruption . | . . . Corruption Purged . | . . . Overload Shots . | . . . Overflow Damage . | . . . Projectiles . | . . . Explosions . | . . . Melee . | . . . Knockbacks . | . . . Impact . | . . . Kinetic . | . . . Secondary . | . . . Self-Inflicted Damage . | . . . Shots . | . . . Rammed . | . . . Targets Rammed . | . . . Kicked . | . . . Crushed . | . . . Highest Temperature 170 | 170 . 51 Average Temperature 52 | 76 . 21 Received Heat Transfer 108 | . . 108 Siege Activations . | . . . Robots Corrupted . | . . . Combat Hostiles . | . . . Parts Fried . | . . . Impact Corruptions . | . . . Robots Melted . | . . . Combat Hostiles . | . . . Parts Melted 2 | 2 . . Heat Transferred 458 | 235 . 223 Parts Sabotaged . | . . . Parts Stolen . | . . . Parts Stripped . | . . . Power Chain Reactions 1 | . . 1 Missiles Intercepted . | . . . Alert | -11 -10 -10 ------- Run | Scr Mat Min Peak Influence 24 | 15 24 16 Average Influence 9 | 5 10 9 Maximum Alert Level . | . . . Low Security (%) 100 | 100 100 100 Level 1 . | . . . Level 2 . | . . . Level 3 . | . . . Level 4 . | . . . Level 5 . | . . . High Security . | . . . Max Security . | . . . Squads Dispatched 1 | . 1 . Investigation . | . . . Extermination . | . . . Reinforcement 1 | . 1 . Assault . | . . . Garrison . | . . . Intercept . | . . . Construction Impeded . | . . . Haulers Reinforced . | . . . Stealth | -11 -10 -10 --------- Run | Scr Mat Min Distress Signals . | . . . Communications Jammed . | . . . Distress Signals . | . . . Times Spotted 24 | . 2 22 Peak Tracking Total 10 | . 2 10 Tactical Retreats 3 | . . 3 Traps | -11 -10 -10 ------- Run | Scr Mat Min Traps Triggered . | . . . Indirectly . | . . . Trap Hack Attempts . | . . . Triggered . | . . . Disarmed . | . . . Reprogrammed . | . . . Reused . | . . . Traps Extracted . | . . . Installed . | . . . Triggered . | . . . Machines | -11 -10 -10 ---------- Run | Scr Mat Min Machines Disabled . | . . . Max in Single Turn . | . . . Machines Sabotaged . | . . . Garrisons Compromised . | . . . Overloaded Fab Kills . | . . . Fab Network Shutdowns . | . . . Hacking | -11 -10 -10 --------- Run | Scr Mat Min Machines Accessed 1 | . . 1 Terminals 1 | . . 1 Fabricators . | . . . Repair Stations . | . . . Recycling Units . | . . . Scanalyzers . | . . . Garrison Access . | . . . Total Hacks 3 | . . 3 Successful 1 | . . 1 Failed 2 | . . 2 Catastrophic 1 | . . 1 Database Lockouts . | . . . Manual 3 | . . 3 Terminals 3 | . . 3 Fabricators . | . . . Repair Stations . | . . . Recycling Units . | . . . Scanalyzers . | . . . Garrison Access . | . . . Terminal Hacks 1 | . . 1 Part Schematic 1 | . . 1 Fabricator Hacks . | . . . Repair Station Hacks . | . . . Recycling Unit Hacks . | . . . Scanalyzer . | . . . Garrison Access Hacks . | . . . Unauthorized Hacks . | . . . Terminals . | . . . Fabricators . | . . . Repair Stations . | . . . Recycling Units . | . . . Scanalyzers . | . . . Garrison Access . | . . . Data Cores Recovered . | . . . Used . | . . . Hacking Detections 1 | . . 1 Full Trace Events . | . . . Feedback Events . | . . . Feedback Blocked . | . . . Robot Schematics Acquired . | . . . Robots Built . | . . . Matter . | . . . Time . | . . . Total Robot Build Rating . | . . . Part Schematics Acquired 1 | . . 1 Parts Built . | . . . Matter . | . . . Time . | . . . Total Part Build Rating . | . . . Parts Repaired . | . . . Time . | . . . Parts Recycled . | . . . Recycled Matter . | . . . Retrieved Matter . | . . . Retrieved Components . | . . . Parts Scanalyzed . | . . . Part Schematics Acquired . | . . . Parts Damaged . | . . . Bothacking | -11 -10 -10 ------------ Run | Scr Mat Min Used RIF Installer . | . . . Robots Hacked . | . . . Non-combat . | . . . Combat . | . . . Robot Hacks Applied . | . . . Relay Couplers Released . | . . . Robots Rewired . | . . . Allies Hacked . | . . . Hacks Repelled . | . . . Allies | -11 -10 -10 -------- Run | Scr Mat Min Total Allies . | . . . Largest Group . | . . . Highest-Rated Group . | . . . Highest-Rated Ally . | . . . Total Orders . | . . . Ally Attacks . | . . . Total Damage . | . . . Kills . | . . . Allies Corrupted . | . . . Allies Melted . | . . . Intel | -11 -10 -10 ------- Run | Scr Mat Min Robot Analysis Total . | . . . Derelict Logs Recovered 2 | . . 2 Drone Launches . | . . . Drone Recoveries . | . . . Exploration | -11 -10 -10 ------------- Run | Scr Mat Min Turns Passed 492 | 88 55 349 Spaces Moved 446 | 46 66 334 Core 16 | 15 . 1 Treads 9 | . . 9 Legs . | . . . Wheels 421 | 31 66 324 Hover . | . . . Flight . | . . . Fastest Speed 50 | 50 80 80 Average Speed 82 | 89 80 82 Slowest Speed 160 | 150 80 160 Overloaded Moves . | . . . Propulsion Burnouts . | . . . Robots Hopped . | . . . Cave-ins Triggered . | . . . Exploration Rate (%) 25 | 5 18 53 Regions Visited 2 Branch Regions 1 Pre-discovered Areas 2 | . . 2 Known Exits Taken . | . . . Unknown Exits Taken 2 | 1 1 . Scrap Searched 1 | . . 1 Spaces Dug . | . . . Terrain Destroyed 10 | . . 10 Melee . | . . . Projectile . | . . . AOE 10 | . . 10 Actions | -11 -10 -10 --------- Run | Scr Mat Min Total 537 | 76 67 394 Wait 37 | . . 37 Move 444 | 45 65 334 Hop . | . . . Pick Up 18 | 14 2 2 Fast Attach . | . . . Attach 16 | 7 . 9 Detach 2 | . . 2 Swap 1 | 1 . . Drop 1 | 1 . . Fire 18 | 8 . 10 Melee . | . . . Ram . | . . . Kick . | . . . Crush . | . . . Escape Stasis . | . . . Rewire . | . . . Trap . | . . . Miscellaneous . | . . . Route ------- -11/Scrapyard -10/Materials -10/Mines (discovered 2 exits: [*Mat x2]) History --------- Turn | Location | Event 25 | -11/Scrapyard | Discovered new exit (range 15) 89 | -11/Scrapyard | Entered Materials 114 | -10/Materials | Discovered new exit (range 6) 144 | -10/Materials | Entered Mines 181 | -10/Mines | Discovered new exit (range 10) 238 | -10/Mines | Learned location of Mines (-9) 248 | -10/Mines | Learned location of Recycling (-9) 253 | -10/Mines | Assembled infested the area 258 | -10/Mines | Assisted by a Guerilla fighting off Assembled 322 | -10/Mines | Core integrity fell below 50% 332 | -10/Mines | Core integrity fell below 20% 356 | -10/Mines | Lost 8 parts (2p2n4w) 363 | -10/Mines | Build established: Mutant 367 | -10/Mines | Discovered new exit (range 15) 486 | -10/Mines | Lost 3 parts (1n2w) 493 | -10/Mines | Destroyed by as-92186 with Assembled Heavy Rifle Last Messages --------------- 00337_ HV Slug penetrates D-53 Grenadier. 00337_ D-53 Grenadier destroyed. 00338_ Acquired Wheel. 00339_ as-70457 suffers critical hit. 00339_ as-70457 knocked back. 00342_ HV Slug penetrates as-70457. 00342_ as-70457 suffers critical hit. 00342_ as-70457 destroyed. 00344_ HV Slug penetrates as-70369. 00344_ as-70369 suffers critical hit. 00344_ as-70369 knocked back. 00346_ The unstable cave ceiling collapses. 00367_ EXIT=FOUND 00399_ Acquired 7 matter. 00447_ Med. Laser destroyed. 00454_ Mining Laser destroyed. 00455_ Wheel destroyed. 00466_ Acquired 26 matter. 00487_ Acquired Com. Wheel. 00491_ Wheel destroyed. Map ----- +----------------------------------------------------+ | | | | | | | | | | | | | | | | | ?????????????????????????????????????????????????? | | ?????????????????????????????????????????????????? | | ?????????????????????????????????????????????????? | | ???????????????????????????????????????######????? | | ??????????????????????????????????????## ###### | | ???????????????#####??????????????????# | | ??????????????## ##?????????????????# ##### | | ??????????????# ##????????????????## ##???? | | ?????????????## ##????????????????# #????? | | ??############ #???????????##???# #????? | | ??# #??????????? ##### ##???# | | ??# ##?????????## # = #"#?# | | ??# ## ##??#########""""" #??# | | ??# ### #####???# #??# | | ??# #?# ##???????# %! #??# | | ??# #?# ##???????# ### # # ## # #??# | | ??# #?## ####????# ## # # ## #??# | | ??# #??## ##???#@ % # # #??# | | ??# #???## #???# # ##??# | | ??# ##???### #???# a ### ##???# | | ??# ###???## #???## # ####????# | | ??# ##???## ##???##%! #a a# % ##???????# | | ??# #???## ##??### # =a* #????????# | | ??## ##### ##??## #### * % #????????? | | ???## ###### #??### %####??????? | | ????# ### ##???## # !#??????? | | ##?## #### ### #??????###### #=#??????? | | ## #### ### #?????????????#%######## | | ### ## ##?????????????#!## # | | ## % #?????????????##% | | ### ##?????????????# | | ### ##??????????????# | | ### ##???????????????# ## | | #?# ##????????????????# ##### | | #?## ##?????????????????# ##???# | | ##??## ## ##??????????????????# ###????# | | ##????## ######???????????????????# #??????# | | ###??????#" ##???????????# ????###?## #??????# | | #????????# # #???????????# ### ## ###???? | | ?????????#######???????????# = #???? | | ?????????????????????????????# * #????# | | ?????????????????????????????# ##### % #????## | +----------------------------------------------------+ Best States ------------- Heat Dissipation 25 Energy Generation 10 Energy Capacity 125 Matter Stores 300 Matter Capacity 300 Sight Range 16 Terrain Scan Density 10 Evasion (%) 50 Recoil Reduction 2 Item Schematics ----------------- Hcp. Storage Unit | -10/Mines | Hacked Robot Schematics ------------------ None Fabricated ------------ Nothing Alien Tech Used ----------------- None Achievements -------------- None Challenges ------------ None Game ------ Seed BombardmentSignalModule Manual? 0 Play Time 00:04:49 Cumulative 222.4 hours Start 2019.12.09 @ 21:52:03 End 2019.12.09 @ 21:56:45 Sessions 1 Manual Loads 0 Difficulty Rogue Special Mode None Game No. 296 Rogue 296 Adventurer 0 Explorer 0 Win Type - Total 2 Types 1/0/0/1/0/0/0 Lore% 55 Gallery% 78 Achievement% 55 Wizard Run 0 Options --------- ASCII 0 Keyboard 0 Movement Numpad Keybinds 0 Fullscreen 1 Font 16/Terminus Map View 75x55 Tactical HUD 1 Map Filters NONE Filters NONE Steam 1 RUN: 27334c2a-bc38-4bae-bf99-a5d6a557ec14